bitfinex-derivatives/quotes_BTCF0:USTF0_20250216
["timestamp","ask_amount","ask_price","bid_price","bid_amount"]
[1739715467335,0.5673217,96828.0,96826.0,0.00019486]
[1739715469038,0.6390217,96828.0,96826.0,0.00019486]
[1739715470138,0.6400217,96828.0,96826.0,0.00019486]
[1739715470333,0.2065366,96821.0,96820.0,0.00016]
[1739715472528,0.2075366,96821.0,96820.0,0.00016]
[1739715473538,0.2085366,96821.0,96820.0,0.00016]
[1739715485142,0.002,96821.0,96808.0,0.036]
[1739715485343,0.2065622,96809.0,96808.0,0.036]
[1739715486541,0.2075622,96809.0,96808.0,0.036]
[1739715488448,0.2085622,96809.0,96808.0,0.036]
[1739715493449,0.002,96809.0,96808.0,0.036]
[1739715493654,0.15329266,96817.0,96816.0,0.2065472]
[1739715495149,0.15429266,96817.0,96816.0,0.2065472]
[1739715495546,0.15529266,96817.0,96816.0,0.2065472]
[1739715495851,0.15529266,96817.0,96816.0,0.21664352]
[1739715496053,0.002,96817.0,96816.0,0.21664352]
[1739715504058,4e-05,96820.0,96819.0,0.2065408]
[1739715504254,4e-05,96820.0,96819.0,0.5673408]
[1739715504763,4e-05,96827.0,96819.0,0.3608]
[1739715504962,4e-05,96827.0,96826.0,0.2065259]
[1739715506051,0.00104,96827.0,96826.0,0.2075259]
[1739715506276,0.00204,96827.0,96826.0,0.2075259]
[1739715509659,4e-05,96834.0,96829.0,0.2065195]
[1739715509854,4e-05,96834.0,96829.0,0.5673195]
[1739715511368,0.00115486,96830.0,96829.0,0.5703195]
[1739715512366,0.00215486,96830.0,96829.0,0.5703195]
[1739715516768,0.00215486,96830.0,96829.0,0.2095195]
[1739715517765,0.00215486,96830.0,96829.0,0.5703195]
[1739715518165,4e-05,96834.0,96833.0,0.2065109]
[1739715520075,4e-05,96834.0,96833.0,0.2095109]
[1739715520276,0.00104,96834.0,96833.0,0.2105109]
[1739715522265,0.03654,96834.0,96833.0,0.2105109]
[1739715530978,0.00104,96834.0,96833.0,0.2105109]
[1739715546884,0.2075488,96834.0,96833.0,0.004]
[1739715547092,0.2427488,96834.0,96833.0,0.004]
[1739715547695,0.2427488,96834.0,96833.0,0.210511]
[1739715550303,0.2075488,96834.0,96833.0,0.210511]
[1739715552291,0.2075488,96834.0,96833.0,0.004]
[1739715555794,0.21787286,96834.0,96833.0,0.004]
[1739715560497,0.2075488,96834.0,96833.0,0.004]
[1739715571819,0.2075488,96834.0,96833.0,4.578e-05]
[1739715572821,0.2065216,96828.0,96827.0,4e-05]
[1739715573524,0.3109216,96828.0,96827.0,4e-05]
[1739715575226,0.3119216,96828.0,96827.0,0.00104]
[1739715575427,0.2771216,96828.0,96827.0,0.00104]
[1739715576422,0.2781216,96828.0,96827.0,0.00204]
[1739715579530,0.2434216,96828.0,96827.0,0.00204]
[1739715580233,0.36181426,96828.0,96827.0,0.00204]
[1739715586130,0.25874323,96828.0,96827.0,0.00204]
[1739715591836,0.26922498,96828.0,96827.0,0.00204]
[1739715592433,0.61954323,96828.0,96827.0,0.00204]
[1739715594739,0.25874323,96828.0,96827.0,0.00204]
[1739715594943,0.61954323,96828.0,96827.0,0.00204]
[1739715597736,0.25874323,96828.0,96827.0,0.00204]
[1739715597935,0.61954323,96828.0,96827.0,0.00204]
[1739715599545,0.5693216,96828.0,96827.0,0.00204]
[1739715605351,0.2065281,96825.0,96824.0,0.00015495]
[1739715605647,0.2065366,96821.0,96820.0,0.00016]
[1739715605850,0.5673366,96821.0,96820.0,0.00016]
[1739715606751,0.57754036,96821.0,96820.0,0.00016]
[1739715607546,0.2065686,96806.0,96805.0,0.0337]
[1739715609445,0.2075686,96806.0,96805.0,0.04412468]
[1739715609639,0.2075686,96806.0,96801.0,0.033]
[1739715609640,0.001,96806.0,96801.0,0.033]
[1739715610145,0.206574,96804.0,96801.0,0.033]
[1739715610346,0.002,96806.0,96801.0,0.033]
[1739715610547,0.2065756,96803.0,96801.0,0.033]
[1739715610748,0.3608,96802.0,96801.0,0.04338549]
[1739715611255,0.3608,96802.0,96801.0,0.033]
[1739715612751,0.001,96802.0,96801.0,0.033]
[1739715613852,0.002,96802.0,96801.0,0.033]
[1739715618655,0.002,96802.0,96801.0,0.2395793]
[1739715623368,0.002,96802.0,96801.0,0.033]
[1739715623556,0.3628,96802.0,96801.0,0.033]
[1739715623864,0.2065911,96796.0,96794.0,4e-05]
[1739715624162,0.2065911,96796.0,96795.0,0.0324]
[1739715625059,0.2075911,96796.0,96795.0,0.0324]
[1739715626159,0.001,96796.0,96795.0,0.0324]
[1739715626354,0.001,96796.0,96795.0,0.0651]
[1739715626755,0.002,96796.0,96795.0,0.0651]
[1739715633160,0.002,96796.0,96793.0,0.3608]
[1739715633364,0.2065985,96792.0,96791.0,0.01039923]
[1739715633564,0.2065985,96792.0,96789.0,0.2066039]
[1739715633763,0.2065985,96792.0,96788.0,0.0329]
[1739715633968,0.0339,96795.0,96788.0,0.0329]
[1739715634268,0.2066049,96789.0,96788.0,0.0329]
[1739715635657,0.2066049,96789.0,96788.0,0.043456]
[1739715636162,0.0349,96795.0,96779.0,0.0357]
[1739715636163,0.206624,96780.0,96779.0,0.0357]
[1739715636559,0.2066283,96778.0,96777.0,0.034]
[1739715636766,0.2066283,96778.0,96777.0,0.04439157]
[1739715637161,0.0351,96779.0,96777.0,0.04439157]
[1739715637576,0.0351,96779.0,96763.0,0.2066594]
[1739715637759,0.0351,96779.0,96772.0,0.0342]
[1739715637760,0.2066294,96778.0,96772.0,0.0342]
[1739715638068,0.2076294,96778.0,96772.0,0.0342]
[1739715638271,0.2076294,96778.0,96772.0,0.2408391]
[1739715638765,0.001,96778.0,96776.0,0.2066322]
[1739715639161,0.002,96778.0,96776.0,0.2066322]
[1739715640572,0.2066304,96777.0,96772.0,0.0342]
[1739715640757,0.2066341,96776.0,96771.0,0.01042561]
[1739715641070,0.2066341,96776.0,96766.0,0.2066529]
[1739715641071,0.0339,96775.0,96772.0,0.2066399]
[1739715641362,0.0339,96775.0,96771.0,0.21699993]
[1739715641776,0.2066411,96772.0,96766.0,0.0343]
[1739715641962,0.0337,96771.0,96766.0,0.0343]
[1739715643771,0.0347,96771.0,96766.0,0.0343]
[1739715643972,0.0347,96771.0,96768.0,0.2066487]
[1739715644469,0.0357,96771.0,96768.0,0.2066487]
[1739715645085,0.002,96771.0,96766.0,0.0343]
[1739715645364,0.002,96771.0,96770.0,0.2066454]
[1739715646470,0.002,96771.0,96766.0,0.0343]
[1739715646671,0.0331,96770.0,96766.0,0.0343]
[1739715647264,0.0331,96770.0,96766.0,0.2409538]
[1739715647464,0.002,96771.0,96766.0,0.0343]
[1739715647663,0.002,96771.0,96769.0,0.2066475]
[1739715648470,0.001,96770.0,96769.0,0.2066475]
[1739715649985,0.002,96770.0,96769.0,0.2066475]
[1739715650277,0.001,96770.0,96769.0,0.2066475]
[1739715651273,0.002,96770.0,96769.0,0.2066475]
[1739715652584,0.002,96770.0,96769.0,1.3766475]
[1739715653285,0.3934,96785.0,96784.0,0.2066152]
[1739715654282,0.3608,96785.0,96784.0,0.2066152]
[1739715654581,0.3618,96785.0,96784.0,0.2066152]
[1739715654791,0.001,96785.0,96784.0,0.2066152]
[1739715655280,0.002,96785.0,96784.0,0.5684152]
[1739715656984,0.002,96785.0,96784.0,0.57876375]
[1739715663682,0.002,96785.0,96784.0,0.3618]
[1739715663986,0.002,96785.0,96784.0,0.001]
[1739715665676,0.002,96785.0,96784.0,0.0354]
[1739715667185,0.002,96785.0,96784.0,0.3962]
[1739715667384,0.00015495,96789.0,96788.0,0.2066067]
[1739715667984,0.15362644,96804.0,96794.0,0.2065939]
[1739715668178,0.15362644,96804.0,96803.0,0.2065747]
[1739715670391,0.15362644,96804.0,96803.0,0.21672056]
[1739715671083,0.0335,96806.0,96803.0,0.21672056]
[1739715671687,0.0335,96806.0,96803.0,0.21872056]
[1739715672794,0.0335,96806.0,96804.0,0.2065706]
[1739715673489,0.001,96806.0,96804.0,0.2065706]
[1739715673684,0.001,96806.0,96805.0,0.0338]
[1739715674391,0.001,96806.0,96805.0,0.2403704]
[1739715675102,0.001,96806.0,96805.0,0.0348]
[1739715675299,0.001,96806.0,96805.0,0.2413704]
[1739715676897,0.001,96806.0,96805.0,0.2433704]
[1739715683396,0.0331,96812.0,96805.0,0.0368]
[1739715683590,0.0331,96812.0,96811.0,0.5673576]
[1739715683791,0.00015495,96813.0,96811.0,0.5673576]
[1739715684094,0.00015495,96813.0,96812.0,1.204]
[1739715685104,4e-05,96820.0,96819.0,0.2065405]
[1739715685394,0.0315,96827.0,96826.0,0.2065256]
[1739715687203,0.0325,96827.0,96826.0,0.2085256]
[1739715688601,0.0335,96827.0,96826.0,0.2115256]
[1739715698314,0.0335,96827.0,96826.0,0.2115256]
[1739715702219,0.0335,96827.0,96826.0,0.2125256]
[1739715702516,0.0335,96827.0,96826.0,0.2115256]
[1739715704113,0.0335,96827.0,96826.0,0.2155256]
[1739715704713,0.0325,96827.0,96826.0,0.2205256]
[1739715709023,0.0335,96827.0,96826.0,0.5813256]
[1739715711114,0.002,96827.0,96826.0,1.7513256]
[1739715711315,4e-05,96834.0,96833.0,0.2065107]
[1739715712629,0.00104,96834.0,96833.0,0.2135107]
[1739715713711,0.00204,96834.0,96833.0,0.2335183]
[1739715716617,0.00204,96834.0,96833.0,0.5943183]
[1739715721823,0.00204,96834.0,96833.0,0.3878076]
[1739715723723,0.00204,96834.0,96833.0,0.0270076]
[1739715724823,0.00204,96834.0,96833.0,0.014]
[1739715743444,0.2065213,96828.0,96827.0,4e-05]
[1739715743743,0.0311,96833.0,96818.0,0.033]
[1739715743950,0.20654,96820.0,96818.0,0.033]
[1739715745042,0.20654,96820.0,96818.0,0.04563405]
[1739715745451,0.20654,96820.0,96818.0,0.04863405]
[1739715745749,0.20754,96820.0,96818.0,0.04863405]
[1739715747040,0.20854,96820.0,96818.0,0.036]
[1739715747246,0.2065512,96814.0,96813.0,0.00162907]
[1739715748555,0.2075512,96814.0,96813.0,0.01421484]
[1739715748748,0.2075512,96814.0,96813.0,0.00162907]
[1739715749149,0.2085512,96814.0,96813.0,0.00562907]
[1739715751356,0.2085512,96814.0,96813.0,0.01771973]
[1739715755054,0.2085512,96814.0,96813.0,0.01617066]
[1739715760258,0.2085512,96814.0,96813.0,0.22272396]
[1739715765268,0.2085512,96814.0,96813.0,0.01617066]
[1739715767267,0.002,96814.0,96813.0,0.22272396]
[1739715767460,0.15362644,96824.0,96823.0,0.206532]
[1739715768268,0.18344548,96831.0,96827.0,0.2065234]
[1739715769256,0.18344548,96831.0,96827.0,0.21879201]
[1739715769776,0.00104,96828.0,96827.0,0.01326861]
[1739715770669,0.00204,96828.0,96827.0,0.04946861]
[1739715772560,0.15523397,96834.0,96827.0,0.04946861]
[1739715772762,0.15523397,96834.0,96833.0,0.5673106]
[1739715773965,0.15623397,96834.0,96833.0,0.5673106]
[1739715774556,0.15623397,96834.0,96833.0,0.5723106]
[1739715774757,0.1546844,96834.0,96833.0,0.5723106]
[1739715774964,0.18344548,96845.0,96833.0,0.3658]
[1739715775168,0.18344548,96845.0,96844.0,0.5672872]
[1739715775565,0.00154908,96859.0,96857.0,0.2064595]
[1739715775773,0.00154908,96859.0,96858.0,0.4249]
[1739715776664,0.18427648,96860.0,96858.0,0.43719296]
[1739715776864,0.18427648,96860.0,96859.0,0.2064552]
[1739715780668,0.00015487,96868.0,96867.0,0.2064382]
[1739715780873,0.00015487,96868.0,96867.0,0.5672382]
[1739715781366,0.0341,96872.0,96871.0,0.2064296]
[1739715782863,0.0351,96872.0,96871.0,0.2064296]
[1739715784080,0.001,96872.0,96871.0,0.2064296]
[1739715787388,0.031,96880.0,96879.0,0.2064126]
[1739715787565,0.031,96880.0,96879.0,0.5672126]
[1739715788077,0.031,96880.0,96879.0,0.3608]
[1739715788581,0.035,96880.0,96879.0,0.3608]
[1739715789577,0.035,96880.0,96879.0,0.37317202]
[1739715789966,0.035,96880.0,96870.0,0.00015487]
[1739715790170,0.2464105,96880.0,96879.0,0.001]
[1739715791278,0.2464105,96880.0,96870.0,0.01353803]
[1739715791586,0.2464105,96880.0,96872.0,0.2064259]
[1739715792180,0.2454105,96880.0,96872.0,0.2064259]
[1739715792873,0.206413,96879.0,96872.0,0.2064259]
[1739715793075,0.039,96880.0,96872.0,0.2064259]
[1739715793076,0.2064153,96878.0,96872.0,0.2064259]
[1739715793574,0.20642,96876.0,96870.0,0.01253803]
[1739715793776,0.20642,96876.0,96872.0,0.001]
[1739715794278,0.20642,96876.0,96870.0,0.21896803]
[1739715795575,0.0315,96877.0,96871.0,0.2064282]
[1739715795781,0.0315,96877.0,96872.0,0.2064269]
[1739715795974,0.002,96876.0,96872.0,0.2064269]
[1739715796174,0.007,96876.0,96870.0,0.01253803]
[1739715796376,0.007,96876.0,96873.0,0.206425]
[1739715796772,0.0335,96877.0,96873.0,0.206425]
[1739715796972,0.0385,96877.0,96873.0,0.206425]
[1739715797483,0.0335,96877.0,96873.0,0.206425]
[1739715797685,0.005,96876.0,96874.0,0.2064221]
[1739715797879,0.005,96876.0,96875.0,0.3928]
[1739715798080,0.007,96876.0,96875.0,0.3928]
[1739715799282,0.002,96876.0,96875.0,0.3928]
[1739715799882,0.0365,96877.0,96876.0,0.206419]
[1739715800073,0.0315,96877.0,96876.0,0.206419]
[1739715801079,0.0315,96877.0,96875.0,0.3928]
[1739715801080,0.031,96880.0,96879.0,0.2064126]
[1739715801972,0.031,96880.0,96879.0,0.24835928]
[1739715803284,0.034,96880.0,96879.0,0.24835928]
[1739715803872,0.039,96880.0,96879.0,0.22354594]
[1739715804989,0.039,96880.0,96879.0,0.5682126]
[1739715807188,0.039,96880.0,96879.0,0.58434537]
[1739715807590,0.039,96880.0,96879.0,0.58434546]
[1739715807982,0.039,96880.0,96879.0,0.5682126]
[1739715809592,0.039,96880.0,96879.0,0.3618]
[1739715811688,0.039,96880.0,96870.0,0.5588666]
[1739715811888,0.039,96880.0,96872.0,0.2064266]
[1739715812395,0.2064137,96879.0,96872.0,0.2064266]
[1739715813389,0.04,96880.0,96872.0,0.001]
[1739715813591,0.04,96880.0,96879.0,0.2064126]
[1739715813798,0.037,96880.0,96879.0,0.2064126]
[1739715813996,0.031,96880.0,96879.0,0.2064126]
[1739715814301,0.031,96880.0,96879.0,0.22254724]
[1739715814997,0.031,96880.0,96879.0,0.22254723]
[1739715815294,0.038,96880.0,96879.0,0.22254723]
[1739715815894,0.041,96880.0,96879.0,0.22254723]
[1739715816998,0.041,96880.0,96879.0,1.39254723]
[1739715817588,0.01,96880.0,96879.0,1.39254723]
[1739715818188,0.007,96880.0,96879.0,1.39254723]
[1739715818488,0.01,96880.0,96879.0,1.39254723]
[1739715819601,0.009,96880.0,96879.0,1.39354723]
[1739715821194,0.009,96880.0,96879.0,1.3774126]
[1739715823604,0.15369919,96893.0,96879.0,1.171]
[1739715823792,0.15369919,96893.0,96888.0,0.2063934]
[1739715823993,0.15369919,96893.0,96889.0,0.031]
[1739715825086,0.15369919,96893.0,96889.0,0.2373908]
[1739715826003,0.15969919,96893.0,96889.0,0.2373908]
[1739715826399,0.16569919,96893.0,96889.0,0.2373908]
[1739715826596,0.16569919,96893.0,96889.0,0.2383908]
[1739715827101,0.15969919,96893.0,96889.0,0.2383908]
[1739715827407,0.009,96893.0,96889.0,0.2393908]
[1739715828703,0.009,96893.0,96889.0,0.002]
[1739715828904,0.2063891,96890.0,96889.0,0.002]
[1739715830011,0.2063891,96890.0,96889.0,0.001]
[1739715830203,0.2123891,96890.0,96889.0,0.002]
[1739715830511,0.2123891,96890.0,96889.0,0.2083913]
[1739715831006,0.006,96890.0,96889.0,0.2083913]
[1739715836203,0.0378,96890.0,96889.0,0.2083913]
[1739715837517,0.0378,96890.0,96889.0,0.2083913]
[1739715843410,0.0378,96890.0,96889.0,0.002]
[1739715846207,0.2441891,96890.0,96889.0,0.2083913]
[1739715850920,0.2441891,96890.0,96889.0,0.002]
[1739715852127,0.2441891,96890.0,96889.0,0.2083913]
[1739715854822,0.2441891,96890.0,96889.0,0.002]
[1739715856822,0.2381891,96890.0,96889.0,0.002]
[1739715857121,0.2381891,96890.0,96889.0,0.001]
[1739715857517,0.2381891,96890.0,96881.0,4e-05]
[1739715857518,0.2064061,96882.0,96881.0,4e-05]
[1739715858416,0.2064232,96874.0,96872.0,0.2064272]
[1739715858613,0.2064232,96874.0,96873.0,0.453056]
[1739715859008,0.2064232,96874.0,96870.0,0.01232145]
[1739715859009,0.0641,96881.0,96870.0,0.01232145]
[1739715859214,0.2064285,96872.0,96870.0,0.01232145]
[1739715859415,0.2064285,96872.0,96871.0,0.2064296]
[1739715860725,0.2074285,96872.0,96871.0,0.2204296]
[1739715866625,0.2074285,96872.0,96871.0,0.014]
[1739715869232,0.5682285,96872.0,96871.0,0.014]
[1739715869623,0.5985285,96872.0,96871.0,0.014]
[1739715877232,0.2064466,96863.0,96862.0,0.01182378]
[1739715877433,0.2064552,96859.0,96858.0,0.2365572]
[1739715877628,0.2064552,96859.0,96858.0,0.24818997]
[1739715879340,0.2074552,96859.0,96858.0,0.25518997]
[1739715879933,0.001,96859.0,96858.0,0.25518997]
[1739715880133,0.002,96859.0,96858.0,0.26218997]
[1739715881439,0.3608,96865.0,96864.0,0.2064445]
[1739715882145,0.2364256,96873.0,96859.0,1.17]
[1739715882347,0.03,96873.0,96859.0,1.17]
[1739715882644,0.03,96873.0,96871.0,0.2064283]
[1739715882844,0.03,96873.0,96872.0,0.0329]
[1739715883943,0.2064359,96869.0,96865.0,0.3935]
[1739715884134,0.2064359,96869.0,96868.0,0.2064355]
[1739715885647,0.2074359,96869.0,96868.0,0.2134355]
[1739715886443,0.2084359,96869.0,96868.0,0.2134355]
[1739715887452,0.2074359,96869.0,96868.0,0.2134355]
[1739715887642,0.2084359,96869.0,96868.0,0.2204355]
[1739715890049,0.2084359,96869.0,96868.0,0.014]
[1739715897158,0.2084359,96869.0,96868.0,0.220436]
[1739715900271,0.002,96869.0,96868.0,0.220436]
[1739715901856,0.002,96869.0,96868.0,0.220436]
[1739715911769,0.002,96869.0,96868.0,0.014]
[1739715914274,0.2064552,96859.0,96856.0,0.0311]
[1739715914468,0.2064679,96853.0,96852.0,0.2466307]
[1739715915869,0.2064743,96850.0,96849.0,0.00015487]
[1739715916067,0.5672743,96850.0,96849.0,0.00015487]
[1739715918077,0.5682743,96850.0,96849.0,0.00015487]
[1739715918879,0.5692743,96850.0,96849.0,0.00015487]
[1739715919781,0.61947329,96850.0,96849.0,0.00015487]
[1739715920371,0.25867329,96850.0,96849.0,0.00015487]
[1739715922371,0.2084743,96850.0,96849.0,0.00015487]
[1739715930786,0.002,96850.0,96843.0,0.0116692]
[1739715931088,0.002,96850.0,96840.0,0.0332]
[1739715931089,0.2064935,96841.0,96840.0,0.0332]
[1739715933289,0.2064935,96841.0,96840.0,0.0446203]
[1739715933290,0.2074935,96841.0,96840.0,0.0446203]
[1739715933587,0.2084935,96841.0,96840.0,0.0446203]
[1739715935382,0.2064999,96838.0,96837.0,1.17052]
[1739715935583,0.2064999,96838.0,96837.0,1.17]
[1739715936082,0.206502,96837.0,96836.0,0.3608]
[1739715937594,0.207502,96837.0,96836.0,0.3608]
[1739715938478,0.208502,96837.0,96836.0,0.3608]
[1739715941787,0.2065084,96834.0,96833.0,4e-05]
[1739715941986,0.5673084,96834.0,96833.0,4e-05]
[1739715942987,0.5683084,96834.0,96833.0,4e-05]
[1739715943288,0.2065212,96828.0,96816.0,0.5673468]
[1739715943480,0.2065212,96828.0,96818.0,0.0331]
[1739715944486,0.2065212,96828.0,96818.0,0.03325487]
[1739715945280,0.2075212,96828.0,96820.0,0.01159575]
[1739715945797,0.2075212,96828.0,96818.0,0.23979687]
[1739715946583,0.2075212,96828.0,96818.0,0.2511913]
[1739715946794,0.2085212,96828.0,96818.0,0.2511913]
[1739715946996,0.2085212,96828.0,96818.0,0.23979687]
[1739715947199,0.2085212,96828.0,96818.0,0.25107301]
[1739715952901,0.002,96828.0,96818.0,0.04453101]
[1739715953103,0.10812,96828.0,96826.0,0.2065246]
[1739715953399,0.10812,96828.0,96827.0,0.03174]
[1739715953598,0.002,96828.0,96827.0,0.03174]
[1739715954400,0.002,96828.0,96827.0,0.06194]
[1739715954596,0.002,96828.0,96827.0,0.09194]
[1739715955894,0.002,96828.0,96826.0,0.14347968]
[1739715956895,0.00204,96828.0,96826.0,0.14347968]
[1739715959001,0.00204,96828.0,96827.0,0.0641]
[1739715960089,0.00104,96828.0,96827.0,0.0641]
[1739715960294,0.00204,96828.0,96827.0,0.0641]
[1739715962401,0.00204,96828.0,96827.0,0.2706234]
[1739715969305,0.00204,96828.0,96827.0,0.2390234]
[1739715969510,0.00204,96828.0,96822.0,0.3608]
[1739715969904,0.2065236,96827.0,96822.0,0.3608]
[1739715970297,0.0302,96826.0,96822.0,0.3608]
[1739715970703,0.2065285,96825.0,96822.0,0.3608]
[1739715971199,0.0333,96824.0,96822.0,0.3608]
[1739715972398,0.0343,96824.0,96822.0,0.3608]
[1739715973001,0.0353,96824.0,96822.0,0.3608]
[1739715974206,0.0353,96824.0,96821.0,0.2065355]
[1739715975212,0.206532,96823.0,96821.0,0.2065355]
[1739715976405,0.001,96824.0,96823.0,0.2065319]
[1739715976604,0.001,96824.0,96823.0,1.3765319]
[1739715976806,0.001,96824.0,96823.0,0.2065319]
[1739715977207,0.001,96824.0,96823.0,1.3765319]
[1739715977603,0.2367258,96826.0,96823.0,1.3765319]
[1739715977907,0.001,96824.0,96823.0,1.3765319]
[1739715978411,0.2367258,96826.0,96824.0,0.2065287]
[1739715979017,0.2377258,96826.0,96824.0,0.2065287]
[1739715980010,0.2387258,96826.0,96824.0,0.2065287]
[1739715980817,0.2065276,96825.0,96824.0,0.2065287]
[1739715981319,0.2383276,96825.0,96824.0,0.2065287]
[1739715982120,0.2393276,96825.0,96824.0,0.2065287]
[1739715982315,0.2403276,96825.0,96824.0,0.2065287]
[1739715985319,0.0338,96825.0,96824.0,0.2065287]
[1739715987218,0.002,96825.0,96824.0,0.2065287]
[1739715987407,0.002,96825.0,96824.0,0.2386287]
[1739715987612,0.002,96825.0,96824.0,0.2706287]
[1739715987814,4e-05,96828.0,96827.0,0.2065233]
[1739715989021,0.00104,96828.0,96827.0,0.2065233]
[1739715989423,0.00204,96828.0,96827.0,0.2065233]
[1739715992313,0.0323,96838.0,96833.0,0.2065106]
[1739715993423,0.00104,96834.0,96833.0,0.2085106]
[1739715995025,0.00104,96834.0,96833.0,0.2105106]
[1739715995026,0.00204,96834.0,96833.0,0.2105106]
[1739716024138,0.00204,96834.0,96833.0,0.5713106]
[1739716026548,0.0323,96838.0,96836.0,0.2065042]
[1739716026945,0.0323,96838.0,96837.0,0.206502]
[1739716027249,0.15370482,96848.0,96836.0,1.2221459]
[1739716027445,0.0326,96847.0,96838.0,0.0516249]
[1739716027643,0.0326,96847.0,96846.0,0.5672828]
[1739716029048,0.0336,96847.0,96846.0,0.5702828]
[1739716030049,0.0346,96847.0,96846.0,0.5732828]
[1739716047161,0.0346,96847.0,96846.0,1.7432828]
[1739716053366,0.0346,96847.0,96846.0,2.1040828]
[1739716073887,0.0346,96847.0,96846.0,2.1202206]
[1739716075789,0.0346,96847.0,96846.0,2.1040828]
[1739716079092,0.0346,96847.0,96846.0,2.1202205]
[1739716082892,0.0346,96847.0,96846.0,2.12022009]
[1739716083299,0.0346,96847.0,96846.0,2.12022013]
[1739716083897,0.0346,96847.0,96846.0,2.1040828]
[1739716094201,0.0301,96848.0,96846.0,2.1040828]
[1739716094399,0.15370482,96864.0,96862.0,0.2064487]
[1739716094617,0.0319,96871.0,96870.0,0.2064317]
[1739716094914,0.0315,96881.0,96880.0,0.2064104]
[1739716095102,0.0315,96881.0,96880.0,0.5672104]
[1739716096305,0.0315,96881.0,96880.0,0.57803375]
[1739716098105,0.0435,96881.0,96880.0,0.59416737]
[1739716099607,0.0754,96881.0,96880.0,0.59416737]
[1739716100212,0.1082,96881.0,96880.0,0.59416737]
[1739716100607,0.1082,96881.0,96880.0,0.59416712]
[1739716101008,0.1082,96881.0,96880.0,0.57803375]
[1739716103907,0.1082,96881.0,96880.0,0.59416686]
[1739716104409,0.0754,96881.0,96880.0,0.59416686]
[1739716105113,0.0439,96881.0,96880.0,0.59416686]
[1739716105322,0.0312,96888.0,96880.0,0.38775646]
[1739716105515,0.0634,96888.0,96884.0,0.2064011]
[1739716105724,0.0634,96888.0,96885.0,0.01613311]
[1739716106019,0.0634,96888.0,96886.0,0.01613311]
[1739716106220,0.0634,96888.0,96887.0,0.01613311]
[1739716106519,0.0704,96888.0,96887.0,0.01613311]
[1739716106715,0.00154857,96892.0,96887.0,0.01613311]
[1739716106911,0.00154857,96892.0,96891.0,0.2063869]
[1739716107217,0.00154857,96892.0,96891.0,0.22251894]
[1739716107616,0.0926,96897.0,96891.0,0.25551894]
[1739716107817,0.0926,96897.0,96892.0,0.01613204]
[1739716108017,0.0926,96897.0,96893.0,0.01613204]
[1739716108220,0.0926,96897.0,96894.0,0.01613204]
[1739716108425,0.0926,96897.0,96895.0,0.01613204]
[1739716108623,0.0926,96897.0,96896.0,0.01613187]
[1739716108818,0.0322,96897.0,96896.0,0.01613187]
[1739716109127,0.0342,96897.0,96896.0,0.01613187]
[1739716109421,0.0342,96897.0,96896.0,0.04693187]
[1739716110619,0.0304,96903.0,96896.0,0.04693187]
[1739716110921,0.00015487,96904.0,96902.0,0.5671635]
[1739716111123,0.00015487,96904.0,96903.0,0.04723187]
[1739716112428,0.03,96915.0,96910.0,0.206346]
[1739716112727,0.03,96915.0,96911.0,0.04612868]
[1739716112931,0.03,96915.0,96912.0,0.01612868]
[1739716113115,0.03,96915.0,96913.0,0.01612868]
[1739716113315,0.03,96915.0,96914.0,0.01612868]
[1739716114018,0.06325478,96924.0,96914.0,0.04612868]
[1739716114221,0.00015478,96924.0,96922.0,0.2063209]
[1739716114421,0.00015478,96924.0,96923.0,0.04852683]
[1739716114927,0.00015478,96924.0,96923.0,0.01612683]
[1739716115116,0.20647148,96924.0,96923.0,0.01612702]
[1739716115321,0.21047148,96924.0,96923.0,0.01612702]
[1739716116228,0.2063287,96919.0,96914.0,0.00215478]
[1739716116415,0.0635,96918.0,96915.0,0.01612825]
[1739716116620,0.0635,96918.0,96916.0,0.01612823]
[1739716116824,0.0635,96918.0,96917.0,0.01612823]
[1739716117819,0.2063358,96915.0,96914.0,0.00115478]
[1739716118529,0.0665,96918.0,96914.0,0.00115478]
[1739716118928,0.206335,96916.0,96914.0,0.00115478]
[1739716119132,0.003,96915.0,96914.0,0.00215478]
[1739716119327,0.0358,96915.0,96914.0,0.00115478]
[1739716120221,0.0358,96915.0,96914.0,0.01728397]
[1739716120534,0.0358,96915.0,96914.0,0.01828397]
[1739716120923,0.0328,96915.0,96914.0,0.01828397]
[1739716122133,0.0358,96915.0,96914.0,0.01828397]
[1739716122430,0.0358,96915.0,96914.0,0.01828385]
[1739716122830,0.2421358,96915.0,96914.0,0.00215478]
[1739716123035,0.2421358,96915.0,96914.0,0.01828416]
[1739716125134,0.5421358,96915.0,96914.0,0.01828545]
[1739716125328,0.5421358,96915.0,96914.0,0.00215478]
[1739716125732,0.2421358,96915.0,96914.0,0.00215478]
[1739716126140,0.2421358,96915.0,96914.0,0.01828541]
[1739716126341,0.2421358,96915.0,96914.0,0.01828532]
[1739716128439,0.2421358,96915.0,96914.0,0.01828544]
[1739716130433,0.2063678,96900.0,96899.0,4e-05]
[1739716130634,0.5671678,96900.0,96899.0,0.01617224]
[1739716130836,0.5671678,96900.0,96899.0,0.01617246]
[1739716132342,0.5671678,96900.0,96899.0,0.01617274]
[1739716133734,0.7216,96900.0,96896.0,8e-05]
[1739716133941,0.2063742,96897.0,96896.0,8e-05]
[1739716134735,0.0325,96898.0,96890.0,0.18570652]
[1739716134930,0.5671869,96891.0,96890.0,0.18570652]
[1739716136435,0.5671869,96891.0,96890.0,0.00015478]
[1739716138538,0.2064104,96880.0,96879.0,0.00154808]
[1739716138735,0.2064104,96880.0,96879.0,0.01768359]
[1739716140245,0.2064104,96880.0,96879.0,0.01768369]
[1739716141647,0.2064104,96880.0,96879.0,0.01768381]
[1739716142347,0.2064104,96880.0,96879.0,0.02168381]
[1739716143548,0.2064104,96880.0,96879.0,0.02168361]
[1739716144841,0.2064104,96880.0,96879.0,0.00554808]
[1739716145938,0.2064104,96880.0,96879.0,0.0216843]
[1739716146138,0.2064104,96880.0,96879.0,0.02168433]
[1739716150942,0.2064104,96880.0,96879.0,0.02013625]
[1739716155449,0.2064104,96880.0,96879.0,0.02013563]